[Event "FIDE Womens Grand Swiss 2021"]
[Site "Riga"]
[Date "2021.11.01"]
[Round "6.13"]
[White "Maltsevskaya, Aleksandra"]
[Black "Arakhamia-Grant, Ketevan"]
[Result "1-0"]
[ECO "B32"]
[WhiteElo "2411"]
[BlackElo "2376"]
[Annotator "NA"]
[PlyCount "81"]
[EventDate "2021.10.27"]
[EventType "swiss"]
[EventCountry "LAT"]
[Tiebreak "Cut1 Buchholz+Sonneborn-Berger (Swiss)"]
[SourceTitle "playchess.com"]
[Source "ChessBase"]
[SourceQuality "1"]
[TimeControl "40/6000+30:20/3000+30:900+30"]

1. e4 {[%emt 0:10:03]} c5 {[%emt 0:10:08]} 2. Nf3 {[%emt 0:00:09]} Nc6 {
[%emt 0:00:05]} 3. d4 {[%emt 0:00:07]} cxd4 {[%emt 0:00:05]} 4. Nxd4 {[%emt 0:
00:05]} e5 {[%emt 0:00:05]} 5. Nb5 {[%emt 0:00:06]} d6 {[%emt 0:00:06]} 6. c4 {
[%emt 0:00:07]} Be7 {[%emt 0:01:15]} 7. N1c3 {[%emt 0:00:09]} a6 {[%emt 0:00:
07]} 8. Na3 {[%emt 0:00:06]} Nf6 {[%emt 0:01:33]} 9. Nc2 {[%emt 0:00:29]} O-O {
[%emt 0:03:55]} 10. Be2 {[%emt 0:00:10]} Ne8 {[%emt 0:05:58]} 11. O-O {[%emt 0:
11:26]} Bg5 {[%emt 0:00:38]} 12. Bg4 {[%emt 0:23:24]} Bxc1 {[%emt 0:01:36]} 13.
Rxc1 {[%emt 0:00:05]} Qh4 {[%emt 0:20:29]} 14. Bxc8 {[%emt 0:07:48]} Rxc8 {
[%emt 0:00:06]} 15. g3 {[%emt 0:06:43]} Qh3 $11 {[%emt 0:01:02]} 16. Nd5 {
[%emt 0:00:07]} Nc7 {[%emt 0:29:14]} 17. f4 {[%emt 0:12:41]} Nxd5 {[%emt 0:06:
41]} 18. cxd5 {[%emt 0:07:38]} exf4 {[%emt 0:00:24]} 19. dxc6 {[%emt 0:04:15]}
fxg3 {[%emt 0:00:27]} 20. Qe2 {[%emt 0:00:07]} Rxc6 {[%emt 0:00:42]} 21. Nd4 {
[%emt 0:03:40]} gxh2+ {[%emt 0:06:14]} 22. Kh1 {[%emt 0:00:07]} Rxc1 {[%emt 0:
01:21]} 23. Rxc1 {[%emt 0:00:06]} g6 {[%emt 0:00:49]} 24. Qf3 {[%emt 0:05:41]}
Qh4 {[%emt 0:00:36]} 25. Ne2 {[%emt 0:00:06]} Re8 {[%emt 0:09:26]} 26. Nc3 {
[%emt 0:00:05]} Kg7 {[%emt 0:01:50]} 27. Rf1 {[%emt 0:00:39]} f6 {[%emt 0:00:
54]} 28. Qd3 {[%emt 0:08:39]} Re5 {[%emt 0:07:41]} 29. Qxd6 {[%emt 0:00:39]} b5
{[%emt 0:00:23]} 30. b4 {[%emt 0:08:14]} a5 {[%emt 0:01:03]} 31. bxa5 {[%emt 0:
00:52]} b4 {[%emt 0:00:13]} 32. Qxb4 {[%emt 0:01:01]} Rg5 {[%emt 0:00:05]} 33.
Qd4 {[%emt 0:00:26]} Rxa5 {[%emt 0:01:08]} 34. Nd5 {[%emt 0:00:49]} Rxa2 {
[%emt 0:00:34]} 35. Nxf6 {[%emt 0:00:07]} Qh3 {[%emt 0:00:35]} 36. Ne8+ {
[%emt 0:00:21]} Kh6 {[%emt 0:00:09]} 37. Qg7+ {[%emt 0:00:13]} Kg5 {[%emt 0:00:
20]} 38. Rf5+ {[%emt 0:01:04]} Kg4 {[%emt 0:00:50]} 39. Nf6+ {[%emt 0:00:06]}
Kg3 {[%emt 0:00:36]} 40. Qc7+ {[%emt 0:00:06]} Kh4 {[%emt 0:00:27]} 41. Qf4+ {
[%emt 0:50:06]} 1-0

[Event "FIDE Womens Grand Swiss 2021"]
[Site "Riga"]
[Date "2021.11.01"]
[Round "6.14"]
[White "Garifullina, Leya"]
[Black "Melia, Salome"]
[Result "1/2-1/2"]
[ECO "B30"]
[WhiteElo "2409"]
[BlackElo "2371"]
[Annotator "ChessBase"]
[PlyCount "64"]
[EventDate "2021.10.27"]
[EventType "swiss"]
[EventCountry "LAT"]
[Tiebreak "Cut1 Buchholz+Sonneborn-Berger (Swiss)"]
[SourceTitle "playchess.com"]
[Source "ChessBase"]
[SourceQuality "1"]
[TimeControl "40/6000+30:20/3000+30:900+30"]

1. e4 {[%emt 0:10:08]} c5 {[%emt 0:10:06]} 2. Nf3 {[%emt 0:00:14]} Nc6 {
[%emt 0:00:02]} 3. Bb5 {[%emt 0:00:12]} Nf6 {[%emt 0:00:16]} 4. Nc3 {[%emt 0:
00:21]} Qc7 {[%emt 0:00:24]} 5. O-O {[%emt 0:00:21]} Nd4 {[%emt 0:00:10]} 6.
Re1 {[%emt 0:00:19]} a6 {[%emt 0:00:07]} 7. Bc4 {[%emt 0:00:08]} e6 {[%emt 0:
01:04]} 8. e5 {[%emt 0:03:31]} Ng8 {[%emt 0:00:15]} 9. b3 {[%emt 0:01:43]} b5 {
[%emt 0:00:38]} 10. Bd3 {[%emt 0:03:21]} Bb7 {[%emt 0:00:05]} 11. Be4 {[%emt 0:
04:20]} Nc6 {[%emt 0:00:21]} 12. Bb2 {[%emt 0:01:03]} Be7 {[%emt 0:00:24]} 13.
d4 {[%emt 0:07:23]} cxd4 {[%emt 0:00:12]} 14. Nxd4 {[%emt 0:02:04]} Nxd4 {
[%emt 0:00:24]} 15. Qxd4 {[%emt 0:12:39]} f5 {[%emt 0:01:33]} 16. Bxb7 {
[%emt 0:03:31]} Qxb7 {[%emt 0:00:02]} 17. Rad1 {[%emt 0:02:44]} Rc8 {[%emt 0:
01:55]} 18. Qd3 {[%emt 0:03:07]} Bc5 {[%emt 0:02:53]} 19. a4 {[%emt 0:03:19]}
b4 {[%emt 0:00:27]} 20. Ne2 {[%emt 0:00:05]} Ne7 {[%emt 0:00:28]} 21. Nf4 {
[%emt 0:00:59]} Rc7 {[%emt 0:24:16]} 22. Re2 {[%emt 0:05:38]} Ng6 {[%emt 0:06:
39]} 23. Nxg6 {[%emt 0:05:10]} hxg6 {[%emt 0:02:12]} 24. Qg3 {[%emt 0:00:18]}
Kf7 {[%emt 0:00:42]} 25. Bc1 {[%emt 0:00:17]} a5 {[%emt 0:16:13]} 26. Bg5 {
[%emt 0:03:05]} Rhc8 {[%emt 0:01:24]} 27. Qh4 {[%emt 0:01:02]} Bf8 {[%emt 0:05:
48]} 28. Red2 {[%emt 0:01:14]} Kg8 {[%emt 0:00:43]} 29. h3 {[%emt 0:00:22]} Qe4
{[%emt 0:11:28]} 30. Qxe4 {[%emt 0:03:47]} fxe4 {[%emt 0:00:05]} 31. Rxd7 {
[%emt 0:00:56]} Rxd7 {[%emt 0:00:05]} 32. Rxd7 {[%emt 0:00:04]} Rxc2 {[%emt 0:
00:07]} 1/2-1/2

[Event "FIDE Womens Grand Swiss 2021"]
[Site "Riga"]
[Date "2021.11.01"]
[Round "6.15"]
[White "Sargsyan, Anna M."]
[Black "Rogule, Laura"]
[Result "0-1"]
[ECO "E14"]
[WhiteElo "2402"]
[BlackElo "2289"]
[Annotator "ChessBase"]
[PlyCount "64"]
[EventDate "2021.10.27"]
[EventType "swiss"]
[EventCountry "LAT"]
[Tiebreak "Cut1 Buchholz+Sonneborn-Berger (Swiss)"]
[SourceTitle "playchess.com"]
[Source "ChessBase"]
[SourceQuality "1"]
[TimeControl "40/6000+30:20/3000+30:900+30"]

1. Nf3 {[%emt 0:10:06]} d5 {[%emt 0:16:18]} 2. c4 {[%emt 0:00:12]} e6 {[%emt 0:
02:49]} 3. e3 {[%emt 0:00:11]} Nf6 {[%emt 0:01:13]} 4. b3 {[%emt 0:00:10]} Be7
{[%emt 0:06:30]} 5. Bb2 {[%emt 0:00:12]} dxc4 {[%emt 0:02:34]} 6. bxc4 {
[%emt 0:00:09]} c5 {[%emt 0:00:21]} 7. d4 {[%emt 0:00:34]} cxd4 {[%emt 0:07:00]
} 8. exd4 {[%emt 0:00:12]} O-O {[%emt 0:05:49]} 9. Bd3 {[%emt 0:00:13]} Nc6 {
[%emt 0:04:19]} 10. O-O {[%emt 0:00:12]} b6 {[%emt 0:01:01]} 11. Nc3 {[%emt 0:
01:07]} Bb7 {[%emt 0:05:05]} 12. Rc1 {[%emt 0:00:34]} Rc8 {[%emt 0:05:15]} 13.
Re1 {[%emt 0:05:04]} Rc7 {[%emt 0:06:29]} 14. a3 {[%emt 0:01:42]} Kh8 {[%emt 0:
14:26]} 15. Ne2 {[%emt 0:01:09]} Rd7 {[%emt 0:06:01]} 16. Qd2 {[%emt 0:02:45]}
Na5 {[%emt 0:11:57]} 17. Qe3 {[%emt 0:01:49]} Ng4 {[%emt 0:02:29]} 18. Qf4 {
[%emt 0:01:52]} Bxf3 {[%emt 0:02:21]} 19. gxf3 {[%emt 0:07:32]} Nf6 {[%emt 0:
00:28]} 20. d5 {[%emt 0:02:07]} b5 {[%emt 0:03:39]} 21. cxb5 {[%emt 0:06:51]}
Rxd5 {[%emt 0:00:08]} 22. Bb1 {[%emt 0:00:04]} Rxb5 {[%emt 0:01:30]} 23. Be5 {
[%emt 0:00:03]} Nb3 {[%emt 0:01:47]} 24. Rcd1 {[%emt 0:00:41]} Qa5 {[%emt 0:01:
34]} 25. Ng3 {[%emt 0:01:48]} Rd5 {[%emt 0:01:42]} 26. Rxd5 {[%emt 0:02:36]}
Qxe1+ {[%emt 0:00:00]} 27. Kg2 {[%emt 0:00:03]} Qxb1 {[%emt 0:00:21]} 28. Rb5 {
[%emt 0:01:18]} Qd3 {[%emt 0:00:40]} 29. Rb7 {[%emt 0:00:02]} Bd8 {[%emt 0:00:
24]} 30. Bd6 {[%emt 0:00:54]} Rg8 {[%emt 0:00:36]} 31. Rxf7 {[%emt 0:00:14]}
Nd4 {[%emt 0:00:23]} 32. Ne4 {[%emt 0:05:32]} Nxf3 {[%emt 0:00:35]} 0-1

[Event "FIDE Womens Grand Swiss 2021"]
[Site "Riga"]
[Date "2021.11.01"]
[Round "6.16"]
[White "Stefanova, Antoaneta"]
[Black "Padmini, Rout"]
[Result "1-0"]
[ECO "D05"]
[WhiteElo "2475"]
[BlackElo "2380"]
[Annotator "ChessBase"]
[PlyCount "125"]
[EventDate "2021.10.27"]
[EventType "swiss"]
[EventCountry "LAT"]
[Tiebreak "Cut1 Buchholz+Sonneborn-Berger (Swiss)"]
[SourceTitle "playchess.com"]
[Source "ChessBase"]
[SourceQuality "1"]
[TimeControl "40/6000+30:20/3000+30:900+30"]

1. d4 {[%emt 0:10:06]} Nf6 {[%emt 0:10:09]} 2. Nf3 {[%emt 0:00:09]} e6 {
[%emt 0:00:46]} 3. e3 {[%emt 0:03:04]} c5 {[%emt 0:00:23]} 4. b3 {[%emt 0:03:
03]} d5 {[%emt 0:01:48]} 5. Bb2 {[%emt 0:01:06]} Bd6 {[%emt 0:00:15]} 6. Bd3 {
[%emt 0:04:13]} O-O {[%emt 0:00:34]} 7. O-O {[%emt 0:03:17]} b6 {[%emt 0:00:33]
} 8. dxc5 {[%emt 0:06:57]} bxc5 {[%emt 0:02:10]} 9. c4 {[%emt 0:03:11]} Bb7 {
[%emt 0:00:18]} 10. cxd5 {[%emt 0:02:20]} exd5 {[%emt 0:00:15]} 11. Nc3 {
[%emt 0:02:02]} Nbd7 {[%emt 0:00:54]} 12. Bf5 {[%emt 0:05:59]} Qe7 {[%emt 0:03:
09]} 13. Rc1 {[%emt 0:07:14]} Rad8 {[%emt 0:02:14]} 14. Re1 {[%emt 0:03:48]}
Bb8 {[%emt 0:08:45]} 15. Bh3 {[%emt 0:06:53]} Ne5 {[%emt 0:34:46]} 16. Nxe5 {
[%emt 0:02:56]} Qxe5 {[%emt 0:02:13]} 17. g3 {[%emt 0:05:38]} Qg5 {[%emt 0:01:
55]} 18. Qf3 {[%emt 0:15:38]} Qh6 {[%emt 0:13:40]} 19. Bf5 {[%emt 0:07:11]} Be5
{[%emt 0:00:27]} 20. Na4 {[%emt 0:04:46]} Bxb2 {[%emt 0:00:23]} 21. Nxb2 {
[%emt 0:00:02]} g6 {[%emt 0:03:14]} 22. Bd3 {[%emt 0:04:41]} Ne4 {[%emt 0:00:
08]} 23. Bxe4 {[%emt 0:03:02]} dxe4 {[%emt 0:00:01]} 24. Qf6 {[%emt 0:00:07]}
Rd5 {[%emt 0:02:45]} 25. Qe7 {[%emt 0:01:25]} Rd2 {[%emt 0:05:26]} 26. Nd1 {
[%emt 0:01:18]} Bc8 {[%emt 0:01:32]} 27. Qxe4 {[%emt 0:00:59]} Qh5 {[%emt 0:00:
34]} 28. Nc3 {[%emt 0:00:56]} Bg4 {[%emt 0:00:23]} 29. h4 {[%emt 0:01:43]} g5 {
[%emt 0:03:42]} 30. Qe7 {[%emt 0:00:05]} Bf3 {[%emt 0:01:24]} 31. Ne4 {[%emt 0:
01:14]} Bxe4 {[%emt 0:00:17]} 32. Qxe4 {[%emt 0:00:02]} gxh4 {[%emt 0:00:08]}
33. Qxh4 {[%emt 0:00:23]} Qxh4 {[%emt 0:00:24]} 34. gxh4 {[%emt 0:00:02]} Rxa2
{[%emt 0:00:06]} 35. Rxc5 {[%emt 0:00:04]} Rb8 {[%emt 0:00:19]} 36. Rd1 {
[%emt 0:01:35]} Rxb3 {[%emt 0:00:44]} 37. Rd7 {[%emt 0:00:15]} Rb6 {[%emt 0:09:
05]} 38. Rf5 {[%emt 0:00:30]} f6 {[%emt 0:00:46]} 39. Rc5 {[%emt 0:00:59]} Rb8
{[%emt 0:00:44]} 40. Rcc7 {[%emt 0:00:29]} h5 {[%emt 0:00:19]} 41. Rg7+ {
[%emt 0:23:13]} Kh8 {[%emt 0:23:37]} 42. Rh7+ {[%emt 0:02:10]} Kg8 {[%emt 0:00:
01]} 43. Rxh5 {[%emt 0:00:58]} a5 {[%emt 0:01:12]} 44. Ra7 {[%emt 0:07:02]} a4
{[%emt 0:00:43]} 45. Rc5 {[%emt 0:09:50]} a3 {[%emt 0:05:12]} 46. Kg2 {[%emt 0:
01:15]} Kh8 {[%emt 0:01:38]} 47. Rcc7 {[%emt 0:06:13]} Ra1 {[%emt 0:10:20]} 48.
h5 {[%emt 0:01:52]} Rg8+ {[%emt 0:02:33]} 49. Kf3 {[%emt 0:00:04]} Rg5 {
[%emt 0:00:07]} 50. h6 {[%emt 0:00:35]} Rag1 {[%emt 0:01:30]} 51. Rh7+ {
[%emt 0:00:56]} Kg8 {[%emt 0:00:04]} 52. Rhf7 {[%emt 0:00:05]} Kh8 {[%emt 0:04:
12]} 53. Rxf6 {[%emt 0:00:35]} Rg8 {[%emt 0:00:57]} 54. Rxa3 {[%emt 0:00:41]}
Re8 {[%emt 0:00:13]} 55. Ra7 {[%emt 0:00:33]} Rh1 {[%emt 0:00:51]} 56. Raf7 {
[%emt 0:01:29]} Kg8 {[%emt 0:00:27]} 57. Rg7+ {[%emt 0:00:20]} Kh8 {[%emt 0:00:
02]} 58. Rg4 {[%emt 0:00:15]} Kh7 {[%emt 0:00:22]} 59. Rg7+ {[%emt 0:00:54]}
Kh8 {[%emt 0:00:11]} 60. Rd7 {[%emt 0:00:05]} Kg8 {[%emt 0:00:27]} 61. e4 {
[%emt 0:15:32]} Rh4 {[%emt 0:15:55]} 62. e5 {[%emt 0:01:04]} Rxe5 {[%emt 0:01:
00]} 63. Rg7+ {[%emt 0:00:06]} 1-0

[Event "FIDE Womens Grand Swiss 2021"]
[Site "Riga"]
[Date "2021.11.01"]
[Round "6.17"]
[White "Cramling, Pia"]
[Black "Houska, Jovanka"]
[Result "1-0"]
[ECO "D23"]
[WhiteElo "2447"]
[BlackElo "2381"]
[Annotator "ChessBase"]
[PlyCount "51"]
[EventDate "2021.10.27"]
[EventType "swiss"]
[EventCountry "LAT"]
[Tiebreak "Cut1 Buchholz+Sonneborn-Berger (Swiss)"]
[SourceTitle "playchess.com"]
[Source "ChessBase"]
[SourceQuality "1"]
[TimeControl "40/6000+30:20/3000+30:900+30"]

1. c4 {[%emt 0:10:18]} c6 {[%emt 0:10:44]} 2. Nf3 {[%emt 0:01:00]} d5 {[%emt 0:
00:05]} 3. d4 {[%emt 0:00:17]} Nf6 {[%emt 0:00:52]} 4. Qc2 {[%emt 0:00:35]}
dxc4 {[%emt 0:00:29]} 5. Qxc4 {[%emt 0:00:05]} Bf5 {[%emt 0:00:12]} 6. g3 {
[%emt 0:00:32]} e6 {[%emt 0:00:19]} 7. Bg2 {[%emt 0:00:16]} Be7 {[%emt 0:00:05]
} 8. Qb3 {[%emt 0:05:51]} Qb6 {[%emt 0:01:06]} 9. Nbd2 {[%emt 0:00:11]} O-O {
[%emt 0:06:51]} 10. O-O {[%emt 0:00:19]} Rd8 {[%emt 0:00:45]} 11. Nc4 {[%emt 0:
06:08]} Qa6 {[%emt 0:03:46]} 12. Bf4 {[%emt 0:20:51]} Be4 {[%emt 0:01:24]} 13.
Rfd1 {[%emt 0:06:26]} Bd5 {[%emt 0:05:47]} 14. Nfe5 {[%emt 0:00:12]} Nbd7 {
[%emt 0:01:40]} 15. Qc2 {[%emt 0:06:19]} Nxe5 {[%emt 0:06:36]} 16. Nxe5 {
[%emt 0:00:13]} Bxg2 {[%emt 0:00:28]} 17. Kxg2 {[%emt 0:00:07]} Rac8 {[%emt 0:
04:56]} 18. a3 {[%emt 0:03:40]} Nd5 {[%emt 0:03:18]} 19. Rac1 {[%emt 0:07:48]}
Nxf4+ {[%emt 0:19:38]} 20. gxf4 {[%emt 0:00:10]} Qb5 {[%emt 0:01:36]} 21. Rd3 {
[%emt 0:11:29]} Qd5+ {[%emt 0:00:21]} 22. f3 {[%emt 0:02:09]} f6 {[%emt 0:02:
11]} 23. Ng4 {[%emt 0:02:06]} Qf5 {[%emt 0:04:36]} 24. e3 {[%emt 0:00:39]} c5 {
[%emt 0:01:28]} 25. Rc3 {[%emt 0:01:06]} g5 {[%emt 0:12:04]} 26. Nh6+ {[%emt 0:
00:24]} 1-0

[Event "FIDE Womens Grand Swiss 2021"]
[Site "Riga"]
[Date "2021.11.01"]
[Round "6.18"]
[White "Lujan, Carolina"]
[Black "Atalik, Ekaterina"]
[Result "1/2-1/2"]
[ECO "B11"]
[WhiteElo "2340"]
[BlackElo "2420"]
[Annotator "NA"]
[PlyCount "78"]
[EventDate "2021.10.27"]
[EventType "swiss"]
[EventCountry "LAT"]
[Tiebreak "Cut1 Buchholz+Sonneborn-Berger (Swiss)"]
[SourceTitle "playchess.com"]
[Source "ChessBase"]
[SourceQuality "1"]
[TimeControl "40/6000+30:20/3000+30:900+30"]

1. e4 {[%emt 0:10:06]} c6 {[%emt 0:10:07]} 2. Nf3 {[%emt 0:00:15]} d5 {[%emt 0:
00:13]} 3. Nc3 {[%emt 0:00:07]} Nf6 {[%emt 0:00:20]} 4. e5 {[%emt 0:00:22]} Ne4
{[%emt 0:00:20]} 5. d4 {[%emt 0:00:19]} Nxc3 {[%emt 0:00:28]} 6. bxc3 {[%emt 0:
00:07]} e6 {[%emt 0:00:32]} 7. Bd3 {[%emt 0:13:16]} c5 {[%emt 0:02:50]} 8. h4 {
[%emt 0:05:36]} c4 {[%emt 0:00:40]} 9. Be2 {[%emt 0:00:23]} Nc6 {[%emt 0:01:22]
} 10. h5 {[%emt 0:07:26]} h6 {[%emt 0:00:57]} 11. a4 {[%emt 0:10:42]} Qa5 {
[%emt 0:01:27]} 12. Bd2 {[%emt 0:00:37]} Bd7 {[%emt 0:00:42]} 13. Qb1 {[%emt 0:
01:09]} O-O-O {[%emt 0:01:33]} 14. Qa2 {[%emt 0:06:20]} f6 {[%emt 0:07:17]} 15.
exf6 {[%emt 0:03:32]} gxf6 {[%emt 0:00:05]} 16. Nh4 {[%emt 0:01:51]} Bd6 {
[%emt 0:02:17]} 17. Ng6 {[%emt 0:01:33]} Rh7 {[%emt 0:08:30]} 18. Qb2 {[%emt 0:
01:54]} Re8 {[%emt 0:06:36]} 19. Qc1 {[%emt 0:06:57]} e5 {[%emt 0:14:31]} 20.
Kf1 {[%emt 0:01:18]} Ne7 $15 {[%emt 0:20:59]} 21. Bxh6 {[%emt 0:12:56]} Rxh6 {
[%emt 0:04:42]} 22. Qxh6 {[%emt 0:05:52]} exd4 {[%emt 0:07:40]} 23. Nxe7+ {
[%emt 0:05:40]} Rxe7 {[%emt 0:00:32]} 24. cxd4 {[%emt 0:05:54]} Qc3 {[%emt 0:
01:46]} 25. Qc1 {[%emt 0:01:33]} Qxd4 {[%emt 0:07:04]} 26. c3 {[%emt 0:00:55]}
Qe5 {[%emt 0:03:05]} 27. Bf3 {[%emt 0:03:47]} Bf5 {[%emt 0:01:01]} 28. Qd2 {
[%emt 0:00:11]} Bd3+ {[%emt 0:00:45]} 29. Kg1 {[%emt 0:00:04]} d4 {[%emt 0:01:
31]} 30. Rc1 {[%emt 0:03:31]} dxc3 {[%emt 0:00:16]} 31. Qe3 {[%emt 0:00:20]}
Qxe3 {[%emt 0:02:36]} 32. fxe3 {[%emt 0:00:00]} Bc5 {[%emt 0:00:20]} 33. Rxc3 {
[%emt 0:00:50]} Rxe3 {[%emt 0:01:31]} 34. Kf2 {[%emt 0:01:22]} Re5+ {[%emt 0:
01:52]} 35. Kg3 {[%emt 0:00:10]} Rg5+ {[%emt 0:00:31]} 36. Kf4 {[%emt 0:00:27]}
Rf5+ {[%emt 0:00:34]} 37. Kg4 {[%emt 0:00:50]} Rg5+ {[%emt 0:00:12]} 38. Kf4 {
[%emt 0:00:02]} Rf5+ {[%emt 0:00:58]} 39. Kg4 {[%emt 0:00:00]} Rg5+ {[%emt 0:
00:27]} 1/2-1/2

[Event "FIDE Womens Grand Swiss 2021"]
[Site "Riga"]
[Date "2021.11.01"]
[Round "6.19"]
[White "Hoang, Thanh Trang"]
[Black "Sukandar, Irine Kharisma"]
[Result "0-1"]
[ECO "D05"]
[WhiteElo "2380"]
[BlackElo "2406"]
[Annotator "NA"]
[PlyCount "92"]
[EventDate "2021.10.27"]
[EventType "swiss"]
[EventCountry "LAT"]
[Tiebreak "Cut1 Buchholz+Sonneborn-Berger (Swiss)"]
[SourceTitle "playchess.com"]
[Source "ChessBase"]
[SourceQuality "1"]
[TimeControl "40/6000+30:20/3000+30:900+30"]

1. d4 {[%emt 0:10:10]} d5 {[%emt 0:10:36]} 2. Nf3 {[%emt 0:00:29]} Nf6 {
[%emt 0:00:21]} 3. e3 {[%emt 0:00:30]} c5 {[%emt 0:00:41]} 4. Nbd2 {[%emt 0:01:
55]} Nc6 {[%emt 0:00:41]} 5. c3 {[%emt 0:01:12]} cxd4 {[%emt 0:00:52]} 6. exd4
{[%emt 0:00:38]} Bf5 {[%emt 0:00:27]} 7. Be2 {[%emt 0:01:15]} h6 {[%emt 0:00:
41]} 8. O-O {[%emt 0:01:21]} e6 {[%emt 0:00:31]} 9. Re1 {[%emt 0:00:28]} Bd6 {
[%emt 0:00:31]} 10. Nf1 {[%emt 0:00:32]} Qc7 {[%emt 0:08:29]} 11. Ng3 {[%emt 0:
01:40]} Bh7 {[%emt 0:01:35]} 12. Bd3 {[%emt 0:01:22]} Bxd3 {[%emt 0:01:36]} 13.
Qxd3 {[%emt 0:00:09]} O-O-O {[%emt 0:00:18]} 14. Bd2 {[%emt 0:06:15]} g5 {
[%emt 0:07:04]} 15. Rac1 {[%emt 0:03:30]} g4 {[%emt 0:08:59]} 16. Ne5 {[%emt 0:
03:49]} Bxe5 {[%emt 0:03:31]} 17. dxe5 {[%emt 0:00:38]} Nd7 {[%emt 0:00:25]}
18. Nh5 {[%emt 0:11:58]} Ndxe5 {[%emt 0:01:55]} 19. Qg3 {[%emt 0:06:07]} Nc4 {
[%emt 0:07:12]} 20. Bf4 {[%emt 0:00:37]} e5 {[%emt 0:03:08]} 21. b3 $15 {
[%emt 0:06:55]} Rhg8 {[%emt 0:15:07]} 22. Bxh6 {[%emt 0:06:23]} Nd6 {[%emt 0:
02:55]} 23. Bd2 {[%emt 0:09:28]} f5 {[%emt 0:05:51]} 24. Nf6 {[%emt 0:12:31]}
Ne4 {[%emt 0:01:16]} 25. Rxe4 {[%emt 0:01:59]} dxe4 {[%emt 0:00:18]} 26. Nxg8 {
[%emt 0:00:10]} Rxd2 {[%emt 0:00:43]} 27. Qh4 {[%emt 0:04:20]} Qd6 {[%emt 0:05:
29]} 28. h3 {[%emt 0:00:29]} e3 {[%emt 0:01:59]} 29. fxe3 {[%emt 0:06:30]} Qd5
{[%emt 0:00:28]} 30. e4 {[%emt 0:00:16]} Qxe4 {[%emt 0:02:16]} 31. Qg3 {
[%emt 0:00:14]} gxh3 {[%emt 0:02:14]} 32. Qxh3 {[%emt 0:00:27]} Rxg2+ {[%emt 0:
07:07]} 33. Qxg2 {[%emt 0:00:12]} Qe3+ {[%emt 0:00:03]} 34. Kh2 {[%emt 0:00:37]
} Qf4+ {[%emt 0:00:43]} 35. Kh3 {[%emt 0:02:31]} Qxc1 {[%emt 0:00:08]} 36. c4 {
[%emt 0:01:47]} e4 {[%emt 0:01:52]} 37. Qf2 {[%emt 0:02:55]} Qh1+ {[%emt 0:02:
14]} 38. Qh2 {[%emt 0:00:14]} Qf3+ {[%emt 0:04:45]} 39. Qg3 {[%emt 0:00:09]}
Qf1+ {[%emt 0:01:47]} 40. Kh4 {[%emt 0:03:50]} Qh1+ {[%emt 0:02:31]} 41. Kg5 {
[%emt 0:25:45]} e3 {[%emt 0:25:39]} 42. Nf6 {[%emt 0:03:13]} e2 {[%emt 0:06:15]
} 43. Nd5 {[%emt 0:00:20]} Qh7 {[%emt 0:01:15]} 44. Qc3 {[%emt 0:08:49]} Ne7 {
[%emt 0:03:22]} 45. Qa5 {[%emt 0:05:52]} Nxd5 {[%emt 0:01:51]} 46. cxd5 {
[%emt 0:01:19]} Qe7+ {[%emt 0:00:24]} 0-1

[Event "FIDE Womens Grand Swiss 2021"]
[Site "Riga"]
[Date "2021.11.01"]
[Round "6.20"]
[White "Divya Deshmukh"]
[Black "Bivol, Alina"]
[Result "0-1"]
[ECO "B15"]
[WhiteElo "2305"]
[BlackElo "2392"]
[Annotator "NA"]
[PlyCount "118"]
[EventDate "2021.10.27"]
[EventType "swiss"]
[EventCountry "LAT"]
[Tiebreak "Cut1 Buchholz+Sonneborn-Berger (Swiss)"]
[SourceTitle "playchess.com"]
[Source "ChessBase"]
[SourceQuality "1"]
[TimeControl "40/6000+30:20/3000+30:900+30"]

1. e4 {[%emt 0:10:05]} c6 {[%emt 0:10:17]} 2. Nc3 {[%emt 0:03:57]} d5 {[%emt 0:
00:17]} 3. Nf3 {[%emt 0:00:03]} dxe4 {[%emt 0:00:09]} 4. Nxe4 {[%emt 0:00:04]}
Nf6 {[%emt 0:00:05]} 5. Nxf6+ {[%emt 0:00:34]} exf6 {[%emt 0:00:07]} 6. d4 {
[%emt 0:00:37]} Bd6 {[%emt 0:00:07]} 7. Be2 {[%emt 0:00:49]} O-O {[%emt 0:00:
58]} 8. O-O {[%emt 0:00:05]} Re8 {[%emt 0:00:51]} 9. Be3 {[%emt 0:01:36]} Nd7 {
[%emt 0:00:21]} 10. c4 {[%emt 0:01:03]} Nf8 {[%emt 0:00:40]} 11. Qb3 {[%emt 0:
02:27]} Ng6 {[%emt 0:04:07]} 12. c5 {[%emt 0:09:39]} Bf4 {[%emt 0:06:44]} 13.
Bc4 {[%emt 0:03:13]} Qc7 {[%emt 0:01:31]} 14. Rfe1 {[%emt 0:16:55]} Be6 {
[%emt 0:01:33]} 15. Bxe6 {[%emt 0:07:36]} Rxe6 {[%emt 0:01:27]} 16. g3 {
[%emt 0:00:30]} Bxe3 {[%emt 0:00:09]} 17. Rxe3 {[%emt 0:00:04]} Rxe3 {[%emt 0:
06:03]} 18. Qxe3 {[%emt 0:03:06]} Qd7 {[%emt 0:01:34]} 19. Re1 {[%emt 0:01:57]}
Rd8 {[%emt 0:03:00]} 20. Kg2 {[%emt 0:07:45]} Nf8 {[%emt 0:02:41]} 21. Qa3 {
[%emt 0:13:59]} a6 {[%emt 0:02:41]} 22. Re3 $17 {[%emt 0:01:32]} Ne6 {[%emt 0:
00:29]} 23. h4 {[%emt 0:03:51]} g5 {[%emt 0:04:13]} 24. hxg5 {[%emt 0:01:30]}
fxg5 {[%emt 0:00:16]} 25. Qb3 {[%emt 0:00:42]} Qd5 {[%emt 0:08:00]} 26. Qxd5 {
[%emt 0:08:19]} Rxd5 {[%emt 0:00:10]} 27. Rb3 {[%emt 0:04:07]} g4 {[%emt 0:04:
51]} 28. Ne5 {[%emt 0:03:03]} Nxd4 {[%emt 0:02:50]} 29. Rd3 {[%emt 0:00:36]} h5
{[%emt 0:05:09]} 30. b4 {[%emt 0:04:29]} Rxe5 {[%emt 0:06:40]} 31. Rxd4 {
[%emt 0:00:01]} Kf8 {[%emt 0:00:37]} 32. Rd8+ {[%emt 0:00:34]} Re8 {[%emt 0:00:
06]} 33. Rd6 {[%emt 0:01:15]} Re7 {[%emt 0:00:37]} 34. Rh6 {[%emt 0:00:54]} Re5
{[%emt 0:00:07]} 35. Rh8+ {[%emt 0:00:28]} Kg7 {[%emt 0:00:06]} 36. Rb8 {
[%emt 0:00:07]} Re7 {[%emt 0:00:02]} 37. Kf1 {[%emt 0:00:43]} f5 {[%emt 0:01:
39]} 38. Rd8 {[%emt 0:00:39]} Kg6 {[%emt 0:01:09]} 39. Rd6+ {[%emt 0:00:24]}
Kg5 {[%emt 0:00:50]} 40. Rd8 {[%emt 0:00:28]} Rg7 {[%emt 0:02:00]} 41. Rf8 {
[%emt 0:27:07]} Re7 {[%emt 0:21:23]} 42. Kg2 {[%emt 0:12:48]} Kg6 {[%emt 0:01:
17]} 43. a3 {[%emt 0:00:54]} Rf7 {[%emt 0:03:01]} 44. Rg8+ {[%emt 0:00:40]} Rg7
{[%emt 0:01:53]} 45. Rf8 {[%emt 0:00:16]} Rh7 {[%emt 0:01:11]} 46. Kf1 {
[%emt 0:02:25]} h4 {[%emt 0:01:07]} 47. gxh4 {[%emt 0:00:01]} Rxh4 {[%emt 0:00:
05]} 48. Kg2 {[%emt 0:01:58]} Rh7 {[%emt 0:01:02]} 49. Kg3 {[%emt 0:01:58]}
Rh3+ {[%emt 0:03:51]} 50. Kg2 {[%emt 0:00:09]} Rxa3 {[%emt 0:03:46]} 51. Rb8 {
[%emt 0:00:05]} f4 {[%emt 0:00:09]} 52. Rxb7 {[%emt 0:00:32]} Ra2 {[%emt 0:00:
07]} 53. Kg1 {[%emt 0:03:24]} Kf5 {[%emt 0:00:18]} 54. f3 {[%emt 0:00:27]} g3 {
[%emt 0:07:35]} 55. Rc7 {[%emt 0:04:55]} Rf2 {[%emt 0:00:16]} 56. Rxc6 {
[%emt 0:00:28]} Rxf3 {[%emt 0:00:04]} 57. Rxa6 {[%emt 0:00:09]} Rc3 {[%emt 0:
00:44]} 58. c6 {[%emt 0:00:53]} Rc1+ {[%emt 0:00:37]} 59. Kg2 {[%emt 0:00:00]}
Kg4 {[%emt 0:00:23]} 0-1